Cogmind - Beta 15 @@@ ROGUE MODE // 2025.10.05 @ 20:20:36 Player: Sunvar Result: Destroyed by P-80 Master with Gamma Rifle Performance ------------- Evolutions (9) 4500 Regions Visited (30) 6000 Robots Destroyed (115) 575 Value Destroyed (2882) 2882 Prototype IDs (46) 920 Alien Tech Used (4) 800 Bonus (7926) 7926 TOTAL SCORE: 23603 Bonus ------- Follower Combat Kills 305 Awakened Behemoth Slayer 1000 Network Hubs Disabled 400 Met Data Miner 300 Met Warlord at Base 500 MAIN.C Attacked Warlord 500 Used Core Reset Matrix 3000 Met Sigix 2000 Friendly Fire -79 Cogmind --------- Core Integrity 0/1600 Matter 296/300 Energy 73/100 System Corruption 7% Temperature Cool (0) Movement Hovering (60) Location -1/Access Parts ------- > --- POWER (3) -------- (None) > --- PROPULSION (10) -- Experimental Gyrokinetic Inverter > --- UTILITY (10) ----- (None) > --- WEAPON (3) ------- (None) > --- INVENTORY (5) ---- Micro Antimatter Reactor Centrium Medium Armor Plating Advanced Hacking Suite Sigix Containment Pod Peak State ------------ > --- POWER ------------ Micro Antimatter Reactor Micro Antimatter Reactor Micro Antimatter Reactor > --- PROPULSION ------- Cooled VTOL Module Cooled VTOL Module Cooled VTOL Module Field Propulsion Drive Nuclear Pulse Array Nuclear Pulse Array Field Propulsion Array > --- UTILITY ---------- Experimental Heat Sink Spectral Analyzer Advanced Sensor Array Advanced Signal Interpreter 0b10 Decoder Chip [Generic] Centrium Medium Armor Plating Graphene Brace Improved Hacking Suite Experimental Hacking Suite Ghost Barrier > --- WEAPON ----------- Enhanced Nova Cannon Phasing Sabre Ionic Axe > --- INVENTORY -------- Sigix Containment Pod [Rating: 176] Favorites ----------- Power Micro Antimatter Reactor Engine Improved Ion Engine Power Core Micro Nuclear Core Reactor Micro Antimatter Reactor Propulsion Light Treads Treads Light Treads Leg Aluminum Leg Wheel Compact Wheel Hover Unit Experimental Gyrokinetic Inverter Flight Unit Improved Flight Unit Utility Hacking Suite Device Seismic Detector Storage Large Storage Unit Processor Advanced Signal Interpreter Hackware Hacking Suite Protection Light Armor Plating Artifact Phase Redirector Weapon Improved Assault Rifle Energy Gun Improved Medium Laser Energy Cannon Beam Cannon Ballistic Gun Improved Assault Rifle Ballistic Cannon Compact Mass Driver Launcher Mini Smartbomb Launcher Impact Weapon Power Maul Slashing Weapon Phasing Sabre Piercing Weapon CR-A16's Behemoth Slayer Build | -11 -10 -10 -9 -9 -8 -7 -7 -7 -7 -6 -6 -6 -6 -6 -5 -5 -5 -5 -5 -4 -4 -4 -4 -4 -4 -3 -3 -2 -2 -1 ------- Run | Yrd Mat Min Mat Min Mat Fac Low Low Dat Pro Fac Low Low Zio Pro Fac Upp Upp War Pro Fac Ext Cet Arc Hub Res Tes Res Qua Acc Slots Evolved 18 | . . . 2 . 2 2 . . . . 2 . . . . 2 . . . . 2 . . . . 2 . 2 . 2 Power 2 | . . . . . . . . . . . 1 . . . . . . . . . . . . . . . . 1 . . Propulsion 8 | . . . 1 . 1 1 . . . . . . . . . 1 . . . . . . . . . 1 . 1 . 2 Utility 7 | . . . . . 1 1 . . . . 1 . . . . 1 . . . . 2 . . . . 1 . . . . Weapon 1 | . . . 1 . . . . . . . . . . . . . . . . . . . . . . . . . . . Parts Attached 142 | . 17 7 22 1 8 11 . . . . 6 2 . 3 2 6 2 . 7 1 6 3 4 . 1 6 10 9 4 4 Power 23 | . 4 1 . . 1 2 . . . . 1 . . . 1 1 . . . 1 2 . 1 . . 2 1 3 2 . Engine 9 | . 4 1 . . 1 1 . . . . 1 . . . . . . . . 1 . . . . . . . . . . Core 5 | . . . . . . 1 . . . . . . . . 1 . . . . . 2 . . . . . . . 1 . Reactor 9 | . . . . . . . . . . . . . . . . 1 . . . . . . 1 . . 2 1 3 1 . Propulsion 39 | . 4 1 11 . 3 5 . . . . 1 . . . . 1 1 . 1 . 1 2 . . . 1 1 2 . 4 Treads 15 | . 3 1 8 . 3 . . . . . . . . . . . . . . . . . . . . . . . . . Leg 1 | . 1 . . . . . . . . . . . . . . . . . . . . . . . . . . . . . Wheel 2 | . . . 2 . . . . . . . . . . . . . . . . . . . . . . . . . . . Hover 2 | . . . . . . . . . . . . . . . . . . . . . . . . . . . . . . 2 Flight 19 | . . . 1 . . 5 . . . . 1 . . . . 1 1 . 1 . 1 2 . . . 1 1 2 . 2 Utility 46 | . 4 3 1 1 2 3 . . . . 2 2 . 2 1 2 1 . 6 . 3 1 2 . 1 2 4 2 1 . Device 20 | . 1 1 . . 1 . . . . . 2 1 . 1 . . 1 . 2 . 2 1 2 . 1 . 4 . . . Storage 3 | . 2 . . . . . . . . . . . . . . . . . 1 . . . . . . . . . . . Processor 4 | . . . . . . . . . . . . 1 . . . 1 . . 2 . . . . . . . . . . . Hackware 11 | . . . . . . 3 . . . . . . . 1 1 1 . . 1 . 1 . . . . 1 . 2 . . Protection 7 | . 1 2 1 1 1 . . . . . . . . . . . . . . . . . . . . 1 . . . . Artifact 1 | . . . . . . . . . . . . . . . . . . . . . . . . . . . . . 1 . Weapon 34 | . 5 2 10 . 2 1 . . . . 2 . . 1 . 2 . . . . . . 1 . . 1 4 2 1 . Energy Gun 3 | . . . 3 . . . . . . . . . . . . . . . . . . . . . . . . . . . Energy Cannon 8 | . 2 . 2 . . . . . . . . . . . . . . . . . . . . . . 1 1 2 . . Ballistic Gun 9 | . 2 2 4 . 1 . . . . . . . . . . . . . . . . . . . . . . . . . Ballistic Cannon 1 | . . . . . . . . . . . . . . . . . . . . . . . . . . . 1 . . . Launcher 4 | . 1 . . . . 1 . . . . . . . . . 2 . . . . . . . . . . . . . . Special Weapon . | . . . . . . . . . . . . . . . . . . . . . . . . . . . . . . . Impact Weapon 3 | . . . . . 1 . . . . . 1 . . . . . . . . . . . . . . . 1 . . . Slashing Weapon 4 | . . . 1 . . . . . . . 1 . . . . . . . . . . . 1 . . . . . 1 . Piercing Weapon 2 | . . . . . . . . . . . . . . 1 . . . . . . . . . . . . 1 . . . Special Melee Weapon . | . . . . . . . . . . . . . . . . . . . . . . . . . . . . . . . Unidentified Prototypes 26 | . . . 4 . . 1 . . . . . . 1 . . 2 . . 7 . . . . . . 2 3 1 4 1 Parts Lost 33 | . . 2 3 . . . . . . . . . . . 3 . 1 . . 1 1 3 1 . . . 3 . 1 14 Power 6 | . . . . . . . . . . . . . . . 1 . . . . 1 1 1 1 . . . . . . 1 Propulsion 11 | . . 1 . . . . . . . . . . . . 1 . . . . . . . . . . . . . . 9 Utility 7 | . . . . . . . . . . . . . . . . . 1 . . . . 1 . . . . 2 . 1 2 Weapon 9 | . . 1 3 . . . . . . . . . . . 1 . . . . . . 1 . . . . 1 . . 2 Highest Loss Streak 13 | . . 2 2 . . . . . . . . . . . 3 . 1 . . 1 1 2 1 . . . 3 . 1 13 To Critical Strikes 1 | . . . . . . . . . . . . . . . . . . . . . . . 1 . . . . . . . Average Backups 8 | . 10 14 14 15 14 5 5 5 5 5 4 5 5 5 4 4 4 3 4 4 4 4 5 5 5 4 4 4 3 1 Power 1 | . 1 2 1 1 1 1 1 1 1 1 1 1 1 1 . . 1 1 1 . . . . . . . 1 1 . . Propulsion 2 | . 4 4 5 6 5 . 1 1 1 1 1 1 1 1 1 . 1 1 1 1 1 1 1 1 1 . . . 1 . Utility 2 | . 1 3 4 4 4 2 2 2 2 2 2 3 3 3 3 2 1 1 2 2 2 2 4 4 4 3 3 2 1 1 Weapon 1 | . 3 4 3 4 3 1 1 1 1 1 . . . . . 1 . . . . . . . . . . . . . . Tool/Special . | . . . . . . . . . . . . . . . . . . . . . . . . . . . . . . . Unused Backups 34 | . 8 1 6 1 3 4 . . . . . . . 1 . 2 . . . 1 2 1 . . . 1 . 1 1 1 Power 9 | . 2 1 2 . 1 1 . . . . . . . . . . . . . 1 . . . . . . . . 1 . Propulsion 1 | . 1 . . . . . . . . . . . . . . . . . . . . . . . . . . . . . Utility 15 | . 2 . 1 1 1 2 . . . . . . . 1 . 1 . . . . 2 1 . . . 1 . 1 . 1 Weapon 9 | . 3 . 3 . 1 1 . . . . . . . . . 1 . . . . . . . . . . . . . . Tool/Special . | . . . . . . . . . . . . . . . . . . . . . . . . . . . . . . . Average Slot Usage (%) 95 | . 97 100 99 100 98 96 100 100 100 100 93 93 93 93 86 87 98 100 100 99 95 89 87 95 95 94 91 84 90 73 Engine 6 | . 14 14 11 11 9 2 . . . . 1 6 6 6 3 . . . . . 5 5 . . . . . . . . Core 1 | . . . . . . 4 7 7 7 7 4 . . . 2 4 5 5 5 5 4 4 5 5 5 2 . . . . Reactor 1 | . . . . . . . . . . . . . . . . . 5 5 5 4 . . . 5 5 5 9 9 11 9 Treads 11 | . 24 28 22 22 27 . . . . . . . . . . . . . . . . . . . . . . . . . Wheel 2 | . . . 10 11 9 . . . . . . . . . . . . . . . . . . . . . . . . . Flight 14 | . . . . . . 34 38 38 38 38 33 33 32 31 28 29 33 33 33 33 25 25 25 25 25 26 26 26 25 20 Device 7 | . 8 3 9 . 8 7 7 7 7 7 13 9 9 12 10 3 5 5 4 5 10 8 10 10 10 12 12 12 11 9 Storage 5 | . 14 14 11 11 9 . . . . . . . . . . . . . . . . . . . . . . . . . Processor 4 | . . . . . . . . . . . . 3 6 6 6 11 11 11 14 16 15 15 15 15 15 13 13 12 12 9 Hackware 9 | . . . . . . 21 23 23 23 23 20 20 19 18 19 22 22 22 17 16 19 20 20 20 20 18 18 14 15 9 Protection 3 | . 4 10 1 11 9 . . . . . . . . . . . . . . . . . . . . . . . . 2 Energy Cannon 5 | . 10 10 8 11 9 . . . . . . . . . . . . . . . . . . . . . . 3 4 2 Ballistic Gun 10 | . 16 16 21 21 17 15 15 8 7 7 6 6 6 . . . . . . . . . . . . . . . . . Launcher 1 | . . . . . . . 5 7 7 7 6 6 6 6 3 3 4 5 5 5 5 2 . . . . . . . . Impact Weapon 2 | . . . . . . 6 1 5 7 7 5 6 6 6 6 5 5 5 5 5 5 5 5 5 5 4 1 . . . Piercing Weapon 1 | . . . . . . . . . . . . . . 5 6 5 5 5 5 5 5 5 5 5 5 4 3 . . . Peak Build Rating 176 | . 10 11 19 20 27 41 41 41 41 41 51 55 59 62 61 81 88 88 107 107 119 120 129 129 129 145 149 173 170 176 Average Rating 56 | . 8 9 14 19 24 37 40 41 41 41 46 53 57 60 59 75 86 88 102 106 113 114 117 129 129 141 138 157 161 151 On Entrance 73 | 6 6 9 10 19 20 27 41 41 41 41 41 50 55 59 61 60 81 88 88 107 104 118 117 129 129 129 143 141 155 157 Naked Turns 20 | . . . . . . . . . . . . . . . . . . . . . . . . . . . . . . 20 Heaviest Build 54 | 10 32 35 40 44 48 20 20 21 21 21 24 24 24 24 24 24 29 29 29 29 27 27 30 30 30 33 33 50 47 54 Greatest Support 63 | 20 40 40 40 16 16 25 25 25 25 25 26 26 26 26 26 33 33 31 33 40 35 37 44 37 37 50 44 50 56 63 Greatest Overweight (x) 2 | . 1 . 2 2 2 . . . . . . . . . 2 . . . 1 . . . . . . . . . . . Average Overweight (x) . | . . . 1 2 2 . . . . . . . . . . . . . . . . . . . . . . . . . Largest Inventory Capacity 15 | . 15 15 15 15 15 15 5 5 5 5 5 5 5 5 5 5 5 5 5 5 5 5 5 5 5 5 5 5 5 5 Average Capacity 9 | . 12 15 15 15 15 5 5 5 5 5 5 5 5 5 5 5 5 5 5 5 5 5 5 5 5 5 5 5 5 5 Most Carried 15 | . 15 15 15 15 15 15 5 5 5 5 5 5 5 5 5 5 5 4 5 5 5 5 5 5 5 5 5 5 5 5 Average Carried 9 | . 10 14 14 14 14 5 5 5 5 5 4 4 4 4 4 4 4 3 4 4 4 4 4 5 5 4 4 4 4 3 Final Capacity 15 | 8 15 15 15 15 15 5 5 5 5 5 5 5 5 5 5 5 5 5 5 5 5 5 5 5 5 5 5 5 5 5 Final Carried 15 | 6 15 15 15 15 15 5 5 5 5 5 5 5 5 5 5 5 3 4 5 4 5 5 5 5 5 5 5 5 5 5 Class Distribution -------------------- 32% | Hacker-Sprinter 26% | Mutant 11% | Tank 11% | Gunner 9% | Hacker-Scout 5% | Hacker-Ninja Dominant Class ---------------- Mutant | -10/Materials Mutant | -10/Mines Gunner | -9/Materials Tank | -9/Mines Tank | -8/Materials Hacker-Sprinter | -7/Factory Hacker-Sprinter | -7/Lower Caves Hacker-Sprinter | -7/Lower Caves Hacker-Sprinter | -7/Data Miner Hacker-Sprinter | -6/Proximity Caves Hacker-Sprinter | -6/Factory Hacker-Sprinter | -6/Lower Caves Hacker-Sprinter | -6/Lower Caves Hacker-Sprinter | -6/Zion Hacker-Sprinter | -5/Proximity Caves Hacker-Sprinter | -5/Factory Hacker-Sprinter | -5/Upper Caves Hacker-Sprinter | -5/Upper Caves Hacker-Sprinter | -5/Warlord Hacker-Sprinter | -4/Proximity Caves Hacker-Ninja | -4/Factory Hacker-Sprinter | -4/Extension Hacker-Sprinter | -4/Cetus Hacker-Sprinter | -4/Archives Hacker-Sprinter | -4/Hub_04(d) Hacker-Scout | -3/Research Hacker-Ninja | -3/Testing Wizard-Scout | -2/Research Wizard-Scout | -2/Quarantine Hacker-Scout | -1/Access Resources | -11 -10 -10 -9 -9 -8 -7 -7 -7 -7 -6 -6 -6 -6 -6 -5 -5 -5 -5 -5 -4 -4 -4 -4 -4 -4 -3 -3 -2 -2 -1 ----------- Run | Yrd Mat Min Mat Min Mat Fac Low Low Dat Pro Fac Low Low Zio Pro Fac Upp Upp War Pro Fac Ext Cet Arc Hub Res Tes Res Qua Acc Matter Collected 3991 | 200 590 392 850 89 203 168 44 28 . . 26 54 30 10 25 10 27 . . 159 107 307 100 . 100 130 85 . 226 31 Remotely . | . . . . . . . . . . . . . . . . . . . . . . . . . . . . . . . Salvage Created 4007 | . 691 431 1110 142 238 95 . . . . 26 . . . 72 147 . . . 29 107 559 . . . 248 112 . . . Parts 243 | . 46 26 64 16 12 11 . . . . 4 . . . 3 2 . . . 8 5 35 . . . 7 4 . . . Haulers Intercepted 11 | . 2 . 6 . . . . . . . . . . . . 1 . . . . . . . . . 2 . . . . Recyclers Shooed 5 | . 1 1 3 . . . . . . . . . . . . . . . . . . . . . . . . . . . Parts Field Recycled . | . . . . . . . . . . . . . . . . . . . . . . . . . . . . . . . Retrieved Matter . | . . . . . . . . . . . . . . . . . . . . . . . . . . . . . . . Parts Self-Destructed 9 | . . . . . . . . 1 . . . . . . 2 . 1 . . 5 . . . . . . . . . . Prevented . | . . . . . . . . . . . . . . . . . . . . . . . . . . . . . . . Kills | -11 -10 -10 -9 -9 -8 -7 -7 -7 -7 -6 -6 -6 -6 -6 -5 -5 -5 -5 -5 -4 -4 -4 -4 -4 -4 -3 -3 -2 -2 -1 ------- Run | Yrd Mat Min Mat Min Mat Fac Low Low Dat Pro Fac Low Low Zio Pro Fac Upp Upp War Pro Fac Ext Cet Arc Hub Res Tes Res Qua Acc Combat Hostiles Destroyed 65 | . 15 12 13 3 2 3 . . . . . . . . 1 . . . . 4 . 12 . . . . . . . . Guns 17 | . 4 4 9 . . . . . . . . . . . . . . . . . . . . . . . . . . . Cannons 15 | . 7 2 4 . 2 . . . . . . . . . . . . . . . . . . . . . . . . . AOE 30 | . 4 6 . 3 . 3 . . . . . . . . . . . . . 4 . 10 . . . . . . . . Classes Destroyed 11 | . 8 1 1 . . . . . . . . . . . 1 . . . . . . . . . . . . . . . Builder 5 | . 1 . 1 . . 1 . . . . . . . . . . . . . . . 2 . . . . . . . . Tunneler 10 | . 2 1 1 3 . . . . . . . . . . . . . . . . . 3 . . . . . . . . Hauler 11 | . 2 . 6 . . . . . . . . . . . . 1 . . . . . . . . . 2 . . . . Recycler 11 | . 1 1 3 1 1 . . . . . . . . . . . . . . . 1 2 . . . . 1 . . . Operator 5 | . 1 . 1 . . 1 . . . . 1 . . . . . . . . . . . . . . 1 . . . . Watcher 8 | . 1 . 4 . 2 . . . . . . . . . . 1 . . . . . . . . . . . . . . Swarmer 33 | . 3 6 4 3 . 3 . . . . . . . . . . . . . 4 . 10 . . . . . . . . Grunt 21 | . 12 4 5 . . . . . . . . . . . . . . . . . . . . . . . . . . . Duelist 1 | . . . 1 . . . . . . . . . . . . . . . . . . . . . . . . . . . Sentry 7 | . . 2 3 . 2 . . . . . . . . . . . . . . . . . . . . . . . . . Behemoth 3 | . . . . . . . . . . . . . . . 1 . . . . . . 2 . . . . . . . . Best Kill Streak 10 | . 5 4 5 3 2 4 . . . . 1 . . . 1 1 . . . 4 1 10 . . . 1 1 . . . Combat Bots Only 10 | . 4 3 4 3 1 3 . . . . . . . . 1 . . . . 4 . 10 . . . . . . . . Max Kills in Single Turn 5 | . 3 2 2 3 1 2 . . . . 1 . . . 1 1 . . . 2 1 5 . . . 1 1 . . . Gunslinging . | . . . . . . . . . . . . . . . . . . . . . . . . . . . . . . . Exploded 5 | . 3 2 . 3 . 2 . . . . . . . . . . . . . 2 . 5 . . . . . . . . Melee . | . . . . . . . . . . . . . . . . . . . . . . . . . . . . . . . Uniques/NPCs Destroyed . | . . . . . . . . . . . . . . . . . . . . . . . . . . . . . . . Combat | -11 -10 -10 -9 -9 -8 -7 -7 -7 -7 -6 -6 -6 -6 -6 -5 -5 -5 -5 -5 -4 -4 -4 -4 -4 -4 -3 -3 -2 -2 -1 -------- Run | Yrd Mat Min Mat Min Mat Fac Low Low Dat Pro Fac Low Low Zio Pro Fac Upp Upp War Pro Fac Ext Cet Arc Hub Res Tes Res Qua Acc Hostile Shots Fired 700 | . 37 73 66 13 30 9 1 3 . 15 10 . . . 36 8 16 35 . 24 . 24 13 5 8 22 35 6 26 185 Missed 289 | . 10 22 19 4 11 4 . 2 . 10 5 . . . 14 2 8 17 . 14 . 5 9 5 5 9 19 4 14 77 Hits 411 | . 27 51 47 9 19 5 1 1 . 5 5 . . . 22 6 8 18 . 10 . 19 4 . 3 13 16 2 12 108 Melee 1 | . . . 1 . . . . . . . . . . . . . . . . . . . . . . . . . . . Projectile 410 | . 27 51 46 9 19 5 1 1 . 5 5 . . . 22 6 8 18 . 10 . 19 4 . 3 13 16 2 12 108 AOE 1 | . . . . . . . . . . . . . . . . . . . . . . . . . . . . . . 1 Critical Strikes 13 | . . 2 . . 2 . . . . . . . . . . . 1 . . . . . 2 . 1 . . . 1 4 Actively Blocked 3 | . . . . . . . . . . . . . . . . . . . . . . . . . . . . . 1 2 Damage Taken 7748 | . 328 701 696 69 274 108 17 22 . 46 33 . . . 540 122 125 317 . 223 72 441 158 . 56 266 247 51 238 2598 Core 2959 | . 38 127 49 12 15 . . 22 . 5 . . . . 298 25 63 186 . 105 40 119 75 . 22 28 28 . 97 1605 Absorbed by Shields 27 | . . . . . . . . . . . . . . . . . . . . . . . 27 . . . . . . . Regen/Repaired (Parts) 291 | . 55 . . . 63 28 . . . . . . . . . 44 . . 27 . 33 . . . . 41 . . . . Core Remaining (%) 80 | 100 . 34 . 84 97 . . . . 96 . . . . 64 . . . . 62 . . . . 77 . 95 . 93 . Volleys Fired 227 | . 56 38 72 8 15 2 . . . . . . . . . . 2 2 . 4 . 4 . . . . 2 4 4 14 Largest 3 | . 2 2 3 3 3 1 . . . . . . . . . . 1 1 . 1 . 1 . . . . 1 1 1 1 Hottest 120 | . 83 83 114 114 114 30 . . . . . . . . . . 80 80 . 80 . 80 . . . . 54 120 120 120 Shots Fired 491 | . 109 69 210 20 45 2 . . . . . . . . . . 2 2 . 4 . 4 . . . . 2 4 4 14 Gun 319 | . 73 42 162 12 30 . . . . . . . . . . . . . . . . . . . . . . . . . Cannon 149 | . 33 23 48 6 15 . . . . . . . . . . . . . . . . . . . . . 2 4 4 14 Launcher 23 | . 3 4 . 2 . 2 . . . . . . . . . . 2 2 . 4 . 4 . . . . . . . . Special . | . . . . . . . . . . . . . . . . . . . . . . . . . . . . . . . Kinetic 303 | . 73 42 144 12 30 . . . . . . . . . . . . . . . . . . . . . 2 . . . Thermal 164 | . 33 23 66 6 15 . . . . . . . . . . . . . . . . . . . . . . 3 4 14 Explosive 23 | . 3 4 . 2 . 2 . . . . . . . . . . 2 2 . 4 . 4 . . . . . . . . Electromagnetic 1 | . . . . . . . . . . . . . . . . . . . . . . . . . . . . 1 . . Robot Hit Streak 17 | . 12 10 12 4 17 . . . . . . . . . . . . . . . . 7 . . . . . 8 . . Robot Miss Streak 7 | . 3 6 7 3 4 . . . . . . . . . . . . . . . . . . . . . . . . . Penetration Max . | . . . . . . . . . . . . . . . . . . . . . . . . . . . . . . . Secondary Targets . | . . . . . . . . . . . . . . . . . . . . . . . . . . . . . . . Shots Hit Robots 309 | . 66 46 118 8 33 1 . . . . 1 . . . 7 3 . 1 . . 1 11 . . . 11 1 1 . . Core Hits 156 | . 27 20 48 7 9 8 . . . . 1 . . . 2 1 . . . 9 1 19 . . . 3 1 . . . Critical Kills 2 | . . . 1 1 . . . . . . . . . . . . . . . . . . . . . . . . . . Critical Parts Destroyed 4 | . 1 . 2 . . . . . . . . . . . . . . . . . . 1 . . . . . . . . Critical Strikes 9 | . 1 . 3 1 . . . . . . . . . . 1 1 . . . . . 1 . . . 1 . . . . Destroy 5 | . 1 . 3 1 . . . . . . . . . . . . . . . . . . . . . . . . . . Smash 1 | . . . . . . . . . . . . . . . . . . . . . . 1 . . . . . . . . Impale 3 | . . . . . . . . . . . . . . . 1 1 . . . . . . . . . 1 . . . . Melee Attacks 201 | . . . 11 . 2 13 1 6 . . 20 . 3 . 10 19 1 3 . . 5 16 . 4 7 51 6 5 7 11 Impact 69 | . . . . . 1 13 1 6 . . 17 . 3 . 2 11 1 1 . . 2 4 . . . 7 . . . . Slashing 92 | . . . 11 . 1 . . . . . 3 . . . . . . . . . . . . 3 6 40 5 5 7 11 Piercing 40 | . . . . . . . . . . . . . . . 8 8 . 2 . . 3 12 . 1 1 4 1 . . . Sneak Attacks 9 | . . . . . . . . . . . . . . . . 1 . . . . 1 2 . . . 4 1 . . . Combat Hostiles . | . . . . . . . . . . . . . . . . . . . . . . . . . . . . . . . Follow-up Attacks 6 | . . . . . . . . . . . . . . . 1 1 . 1 . . . 1 . . . 2 . . . . Damage Inflicted 9213 | . 1272 1135 1883 387 551 308 . . . . 58 . . . 221 227 . 48 . 410 104 1700 . . . 767 81 41 . 20 Guns 2817 | . 662 375 1368 107 305 . . . . . . . . . . . . . . . . . . . . . . . . . Cannons 1503 | . 383 297 515 21 246 . . . . . . . . . . . . . . . . . . . . . . 41 . . Explosions 2878 | . 221 463 . 259 . 229 . . . . . . . . . . . . . 410 . 1296 . . . . . . . . Melee 1989 | . . . . . . 79 . . . . 58 . . . 221 227 . 48 . . 104 404 . . . 767 81 . . . Ramming 26 | . 6 . . . . . . . . . . . . . . . . . . . . . . . . . . . . 20 Kinetic 2633 | . 662 375 1184 107 305 . . . . . . . . . . . . . . . . . . . . . . . . . Thermal 1646 | . 383 297 699 21 246 . . . . . . . . . . . . . . . . . . . . . . . . . Explosive 2795 | . 221 463 . 259 . 146 . . . . . . . . . . . . . 410 . 1296 . . . . . . . . Electromagnetic 124 | . . . . . . 83 . . . . . . . . . . . . . . . . . . . . . 41 . . Impact 434 | . . . . . . 79 . . . . . . . . 40 88 . 48 . . . 137 . . . 42 . . . . Slashing 782 | . . . . . . . . . . . 58 . . . . . . . . . . . . . . 643 81 . . . Piercing 773 | . . . . . . . . . . . . . . . 181 139 . . . . 104 267 . . . 82 . . . . Highest Corruption 7 | . . . . . . . . . . . . . . . . . . . . . . . . . . . . . 2 7 Average Corruption 2 | . . . . . . . . . . . . . . . . . . . . . . . . . . . . . 1 4 Corruption Purged . | . . . . . . . . . . . . . . . . . . . . . . . . . . . . . . . Corruption Blocked . | . . . . . . . . . . . . . . . . . . . . . . . . . . . . . . . Effects 4 | . . . . . . . . . . . . . . . . . . . . . . . . . . . . . 2 2 Message Errors 3 | . . . . . . . . . . . . . . . . . . . . . . . . . . . . . 1 2 Heat Flow Errors 1 | . . . . . . . . . . . . . . . . . . . . . . . . . . . . . 1 . Overload Shots . | . . . . . . . . . . . . . . . . . . . . . . . . . . . . . . . Overflow Damage 589 | . 12 59 . 49 . 69 . . . . . . . . . 53 . . . 17 . 212 . . . 118 . . . . Projectiles 12 | . 12 . . . . . . . . . . . . . . . . . . . . . . . . . . . . . Explosions 288 | . . 59 . 49 . 5 . . . . . . . . . . . . . 17 . 158 . . . . . . . . Melee 289 | . . . . . . 64 . . . . . . . . . 53 . . . . . 54 . . . 118 . . . . Knockbacks 1 | . . . . . . . . . . . . . . . . 1 . . . . . . . . . . . . . . Impact 1 | . . . . . . . . . . . . . . . . 1 . . . . . . . . . . . . . . Kinetic . | . . . . . . . . . . . . . . . . . . . . . . . . . . . . . . . Secondary . | . . . . . . . . . . . . . . . . . . . . . . . . . . . . . . . Self-Inflicted Damage 137 | . . 64 . . . 30 . . . . . . . . . . . . . 33 . . . . . . . . . 10 Shots 4 | . . 2 . . . 1 . . . . . . . . . . . . . 1 . . . . . . . . . . Rammed 6 | . 2 . . . . . . . . . . . . . . . . . . . . . . . . . . . . 4 Targets Rammed 6 | . 2 . . . . . . . . . . . . . . . . . . . . . . . . . . . . 4 Kicked . | . . . . . . . . . . . . . . . . . . . . . . . . . . . . . . . Crushed . | . . . . . . . . . . . . . . . . . . . . . . . . . . . . . . . Highest Temperature 463 | . 317 270 381 114 313 3 7 . . 7 . . . . . 20 150 . 3 74 . 70 286 50 300 463 21 92 51 332 Average Temperature 92 | . 59 132 93 41 109 2 6 . . 7 . . . . . 10 66 . 3 40 . 17 120 18 155 152 6 38 27 123 Received Heat Transfer 1080 | . 177 327 123 . 144 . 9 . . 9 6 . . . 84 9 . 42 . 12 . 63 9 . . 36 . 9 . 21 Effects 7 | . 2 . 3 . . . . . . . . . . . . . . . . . . . . . 1 . . . . 1 Shutdowns 1 | . . . 1 . . . . . . . . . . . . . . . . . . . . . . . . . . . Energy Bleed 5 | . 1 . 2 . . . . . . . . . . . . . . . . . . . . . 1 . . . . 1 Interference 1 | . 1 . . . . . . . . . . . . . . . . . . . . . . . . . . . . . Siege Activations . | . . . . . . . . . . . . . . . . . . . . . . . . . . . . . . . Martial Activations . | . . . . . . . . . . . . . . . . . . . . . . . . . . . . . . . Shielding Activations . | . . . . . . . . . . . . . . . . . . . . . . . . . . . . . . . Robots Disrupted . | . . . . . . . . . . . . . . . . . . . . . . . . . . . . . . . Combat Hostiles . | . . . . . . . . . . . . . . . . . . . . . . . . . . . . . . . Robots Corrupted 1 | . . . . . . . . . . . . . . . . 1 . . . . . . . . . . . . . . Combat Hostiles . | . . . . . . . . . . . . . . . . . . . . . . . . . . . . . . . Parts Fried 4 | . . . . . . 3 . . . . . . . . . 1 . . . . . . . . . . . . . . Impact Corruptions 6 | . . . . . . 3 . . . . . . . . . 2 . . . . . 1 . . . . . . . . Robots Melted . | . . . . . . . . . . . . . . . . . . . . . . . . . . . . . . . Combat Hostiles . | . . . . . . . . . . . . . . . . . . . . . . . . . . . . . . . Parts Melted 7 | . 1 2 3 . 1 . . . . . . . . . . . . . . . . . . . . . . . . . Heat Transferred 3304 | . 814 629 1380 37 444 . . . . . . . . . . . . . . . . . . . . . . . . . Parts Sabotaged . | . . . . . . . . . . . . . . . . . . . . . . . . . . . . . . . Parts Stolen . | . . . . . . . . . . . . . . . . . . . . . . . . . . . . . . . Parts Stripped . | . . . . . . . . . . . . . . . . . . . . . . . . . . . . . . . Power Chain Reactions . | . . . . . . . . . . . . . . . . . . . . . . . . . . . . . . . Alert | -11 -10 -10 -9 -9 -8 -7 -7 -7 -7 -6 -6 -6 -6 -6 -5 -5 -5 -5 -5 -4 -4 -4 -4 -4 -4 -3 -3 -2 -2 -1 ------- Run | Yrd Mat Min Mat Min Mat Fac Low Low Dat Pro Fac Low Low Zio Pro Fac Upp Upp War Pro Fac Ext Cet Arc Hub Res Tes Res Qua Acc Maximum Alert Level 1 | . . . . . . 1 . . . . . . . . . . . . . . . 1 . . . 1 . . . . Low Security (%) 96 | . 100 100 100 100 100 58 . . . . 100 . . . . 100 . . . . 100 87 100 100 100 93 100 100 100 100 Level 1 3 | . . . . . . 41 . . . . . . . . . . . . . . . 12 . . . 6 . . . . Level 2 . | . . . . . . . . . . . . . . . . . . . . . . . . . . . . . . . Level 3 . | . . . . . . . . . . . . . . . . . . . . . . . . . . . . . . . Level 4 . | . . . . . . . . . . . . . . . . . . . . . . . . . . . . . . . Level 5 . | . . . . . . . . . . . . . . . . . . . . . . . . . . . . . . . High Security . | . . . . . . . . . . . . . . . . . . . . . . . . . . . . . . . Max Security . | . . . . . . . . . . . . . . . . . . . . . . . . . . . . . . . Peak Influence 312 | . 84 170 139 108 40 265 . . . . 37 . . . . 81 . . . . 84 263 30 15 123 312 131 73 42 194 Initial 87 | . . 11 . 48 . . . . . . . . . . . . . . . . 84 . 28 . 1 64 87 73 9 . Average 46 | . 27 36 47 27 5 163 . . . . 9 . . . . 42 . . . . 41 103 7 8 73 82 88 25 17 28 Influence Increases 4613 | . 462 335 570 128 104 350 60 . . . 140 . . . 30 221 30 30 . 165 40 513 30 15 142 488 154 51 109 446 Destroy 0b10 Robot/C 1460 | . 300 240 320 80 40 60 . . . . . . . . 20 . . . . 80 . 280 20 . . . . . . 20 Destroy 0b10 Robot/NC 250 | . 40 10 80 20 15 10 . . . . 5 . . . . 10 . . . . 5 35 . . . 15 5 . . . Destroy Leader 298 | . 66 40 100 10 24 10 . . . . . . . . 10 4 . . . 10 . 20 . . . 4 . . . . Allied During Kill 39 | . . . 14 5 . . . . . . . . . . . . . . . . . 6 10 . . . . . . 4 Successful Hack 208 | . 4 . 11 . 7 27 . . . . 29 . . . . 39 . . . . 16 . . . . 19 8 . 40 8 Select Force Hacks 130 | . . . . . . 30 . . . . . . . . . . . . . . . . . . 100 . . . . . Disable Machine 375 | . . 15 15 . . 150 . . . . 15 . . . . 15 . . . . 15 30 . 15 . 15 45 . 30 15 Destroy Structure 323 | . 22 30 15 13 3 18 . . . . 16 . . . . 18 . . . . 4 22 . . 12 60 6 21 24 39 Partial Spotted 345 | . . . . . . 45 . . . . 30 . . . . 30 . . . . . 45 . . 30 120 15 . . 30 Lose Combat Pursuer 1185 | . 30 . 15 . 15 . 60 . . . 45 . . . . 105 30 30 . 75 . 75 . . . 255 75 30 15 330 Influence Decreases 4535 | . 432 365 446 252 104 161 131 63 55 . 128 12 . . 30 186 60 35 . 30 175 462 81 10 24 455 179 165 126 368 Entered New Map 537 | . . 19 . 76 . . 71 23 55 . . 5 . . . . 14 2 . . 51 . 23 . 4 59 69 58 8 . Time Decay 3068 | . 359 336 396 176 104 161 60 40 . . 111 7 . . 30 176 46 33 . 20 92 262 10 10 20 246 80 107 68 118 Lost Part 263 | . . 10 30 . . . . . . . . . . . . . . . . 10 10 30 10 . . . 30 . 3 130 Lost Ally 208 | . . . 20 . . . . . . . . . . . . 10 . . . . . 20 38 . . . . . . 120 Purge Threat 459 | . 73 . . . . . . . . . 17 . . . . . . . . . 22 150 . . . 150 . . 47 . Squads Dispatched 36 | . 4 . 3 . 2 2 . . . . 1 . . . . 5 . . . . 2 1 . . 4 3 2 1 5 1 Investigation 16 | . 3 . 2 . 1 1 . . . . . . . . . 2 . . . . 1 . . . 4 . 1 1 . . Extermination 7 | . . . . . . 1 . . . . 1 . . . . 1 . . . . . . . . . 1 1 . 1 1 Reinforcement 12 | . 1 . 1 . 1 . . . . . . . . . . 2 . . . . 1 1 . . . 2 . . 3 . Assault . | . . . . . . . . . . . . . . . . . . . . . . . . . . . . . . . Garrison 1 | . . . . . . . . . . . . . . . . . . . . . . . . . . . . . 1 . Intercept . | . . . . . . . . . . . . . . . . . . . . . . . . . . . . . . . Searches Triggered . | . . . . . . . . . . . . . . . . . . . . . . . . . . . . . . . Construction Impeded . | . . . . . . . . . . . . . . . . . . . . . . . . . . . . . . . Haulers Reinforced 1 | . . . . . . . . . . . . . . . . 1 . . . . . . . . . . . . . . Active Scanning Responses . | . . . . . . . . . . . . . . . . . . . . . . . . . . . . . . . Cargo Convoy Interrupts . | . . . . . . . . . . . . . . . . . . . . . . . . . . . . . . . Stealth | -11 -10 -10 -9 -9 -8 -7 -7 -7 -7 -6 -6 -6 -6 -6 -5 -5 -5 -5 -5 -4 -4 -4 -4 -4 -4 -3 -3 -2 -2 -1 --------- Run | Yrd Mat Min Mat Min Mat Fac Low Low Dat Pro Fac Low Low Zio Pro Fac Upp Upp War Pro Fac Ext Cet Arc Hub Res Tes Res Qua Acc Distress Signals 17 | . 1 . 1 . 1 . . . . . . . . . . . . . . . . 1 . . 1 2 . 6 2 2 Communications Jammed . | . . . . . . . . . . . . . . . . . . . . . . . . . . . . . . . Distress Signals . | . . . . . . . . . . . . . . . . . . . . . . . . . . . . . . . Times Spotted 276 | . 27 14 24 7 8 6 3 1 . 3 5 . . . 1 10 8 7 . 12 2 14 5 3 10 24 9 16 9 48 Peak Tracking Total 26 | . 4 3 4 4 2 3 4 1 . 3 2 . . . 1 4 7 5 . 10 2 5 5 3 9 12 7 12 8 26 Tactical Retreats 36 | . 1 . 1 . 1 . 1 . . . 3 . . . . 4 2 1 . 1 . 2 . . . 7 3 2 1 6 Traps | -11 -10 -10 -9 -9 -8 -7 -7 -7 -7 -6 -6 -6 -6 -6 -5 -5 -5 -5 -5 -4 -4 -4 -4 -4 -4 -3 -3 -2 -2 -1 ------- Run | Yrd Mat Min Mat Min Mat Fac Low Low Dat Pro Fac Low Low Zio Pro Fac Upp Upp War Pro Fac Ext Cet Arc Hub Res Tes Res Qua Acc Traps Triggered 21 | . 6 . 2 . 1 . . . . . . . . . . 5 . . . . 2 2 . . . . 1 . 1 1 Indirectly . | . . . . . . . . . . . . . . . . . . . . . . . . . . . . . . . Trap Hack Attempts . | . . . . . . . . . . . . . . . . . . . . . . . . . . . . . . . Triggered . | . . . . . . . . . . . . . . . . . . . . . . . . . . . . . . . Disarmed 12 | . . . . . . 6 . . . . . . . . . . . . . . . . . . . . . . 6 . Reprogrammed . | . . . . . . . . . . . . . . . . . . . . . . . . . . . . . . . Reused . | . . . . . . . . . . . . . . . . . . . . . . . . . . . . . . . Traps Extracted . | . . . . . . . . . . . . . . . . . . . . . . . . . . . . . . . Installed . | . . . . . . . . . . . . . . . . . . . . . . . . . . . . . . . Triggered . | . . . . . . . . . . . . . . . . . . . . . . . . . . . . . . . Machines | -11 -10 -10 -9 -9 -8 -7 -7 -7 -7 -6 -6 -6 -6 -6 -5 -5 -5 -5 -5 -4 -4 -4 -4 -4 -4 -3 -3 -2 -2 -1 ---------- Run | Yrd Mat Min Mat Min Mat Fac Low Low Dat Pro Fac Low Low Zio Pro Fac Upp Upp War Pro Fac Ext Cet Arc Hub Res Tes Res Qua Acc Machines Disabled 27 | . . 1 1 . . 10 . . . . 1 . . . . 1 . . . . 1 2 1 1 . 1 4 . 2 1 Max in Single Turn 4 | . . 1 1 . . 4 . . . . 1 . . . . 1 . . . . 1 1 . 1 . 1 1 . 1 1 Garrison Access 3 | . . . . . . . . . . . 1 . . . . . . . . . . . . . . 1 . . . 1 Network Hub 2 | . . . . . . . . . . . . . . . . . . . . . . . . . 2 . . . . . Machines Repaired . | . . . . . . . . . . . . . . . . . . . . . . . . . . . . . . . Machines Dismantled . | . . . . . . . . . . . . . . . . . . . . . . . . . . . . . . . Machines Sabotaged 2 | . . . . . . . . . . . . . . . . . . . . . . . . . 2 . . . . . Overloaded Fab Kills . | . . . . . . . . . . . . . . . . . . . . . . . . . . . . . . . Hacking | -11 -10 -10 -9 -9 -8 -7 -7 -7 -7 -6 -6 -6 -6 -6 -5 -5 -5 -5 -5 -4 -4 -4 -4 -4 -4 -3 -3 -2 -2 -1 --------- Run | Yrd Mat Min Mat Min Mat Fac Low Low Dat Pro Fac Low Low Zio Pro Fac Upp Upp War Pro Fac Ext Cet Arc Hub Res Tes Res Qua Acc Machines Accessed 84 | . 7 . 6 . 2 8 1 . 4 . 11 . . . . 8 . . 4 . 4 2 1 . 4 7 2 2 8 3 Terminals 54 | . 6 . 6 . 1 4 . . . . 7 . . . . 4 . . . . 3 2 1 . 4 4 1 1 8 2 Fabricators 9 | . . . . . . 1 . . . . 3 . . . . 2 . . . . . . . . . 1 1 1 . . Repair Stations 6 | . 1 . . . 1 1 . . . . . . . . . 1 . . . . 1 . . . . 1 . . . . Recycling Units 3 | . . . . . . 2 . . . . . . . . . 1 . . . . . . . . . . . . . . Scanalyzers . | . . . . . . . . . . . . . . . . . . . . . . . . . . . . . . . Garrison Access 3 | . . . . . . . . . . . 1 . . . . . . . . . . . . . . 1 . . . 1 Total Hacks 283 | . 17 . 19 . 6 23 1 . 28 . 23 . . . . 24 . . 10 . 17 6 5 . 10 29 7 15 33 10 Successful 180 | . 7 . 11 . 4 13 1 . 28 . 15 . . . . 19 . . 10 . 12 6 1 . 6 13 4 7 20 3 Failed 103 | . 10 . 8 . 2 10 . . . . 8 . . . . 5 . . . . 5 . 4 . 4 16 3 8 13 7 Catastrophic 21 | . 3 . 4 . . . . . . . 1 . . . . 1 . . . . . . 1 . . 4 1 . 4 2 Database Lockouts . | . . . . . . . . . . . . . . . . . . . . . . . . . . . . . . . Manual 148 | . 9 . 12 . 2 10 . . . . 19 . . . . 10 . . 2 . 8 4 1 . 10 22 4 7 21 7 Terminals 192 | . 15 . 19 . 3 13 . . . . 18 . . . . 14 . . . . 15 6 5 . 10 24 4 6 33 7 Fabricators 28 | . . . . . . 3 . . . . 4 . . . . 7 . . . . . . . . . 2 3 9 . . Repair Stations 15 | . 2 . . . 3 4 . . . . . . . . . 2 . . . . 2 . . . . 2 . . . . Recycling Units 4 | . . . . . . 3 . . . . . . . . . 1 . . . . . . . . . . . . . . Scanalyzers . | . . . . . . . . . . . . . . . . . . . . . . . . . . . . . . . Garrison Access 5 | . . . . . . . . . . . 1 . . . . . . . . . . . . . . 1 . . . 3 Terminal Hacks 103 | . 3 . 3 . 1 4 1 . 28 . 3 . . . . 6 . . 10 . 8 5 1 . 2 6 3 3 16 . Record 18 | . . . . . . . . . 7 . 1 . . . . . . . 6 . . . . . . 1 . 1 2 . Part Schematic 12 | . . . . . . . . . 11 . . . . . . 1 . . . . . . . . . . . . . . Robot Schematic 7 | . . . . . . . . . 7 . . . . . . . . . . . . . . . . . . . . . Prototype ID Bank 8 | . . . 1 . . . . . 3 . . . . . . . . . 4 . . . . . . . . . . . Open Door 4 | . . . . . . . 1 . . . . . . . . . . . . . 1 . 1 . . . . . 1 . Level Access Points 4 | . . . . . . . . . . . . . . . . . . . . . . . . . 1 . 1 1 1 . Branch Access Points 11 | . . . . . 1 1 . . . . 1 . . . . 2 . . . . 1 . . . . 2 1 1 1 . Terminal Index 3 | . . . . . . . . . . . . . . . . . . . . . . 1 . . 1 . . . 1 . Unreport Threat 9 | . 1 . . . . . . . . . 1 . . . . . . . . . 2 1 . . . 1 . . 3 . Locate Traps 8 | . . . 1 . . 1 . . . . . . . . . . . . . . 2 1 . . . 2 . . 1 . Disarm Traps 2 | . . . . . . 1 . . . . . . . . . . . . . . . . . . . . . . 1 . Surveillance Status 2 | . . . . . . . . . . . . . . . . . . . . . . 1 . . . . . . 1 . Recall Reinforcements 7 | . 1 . . . . . . . . . . . . . . 2 . . . . . 1 . . . . . . 3 . Hauler Manifests 6 | . 1 . 1 . . 1 . . . . . . . . . 1 . . . . 2 . . . . . . . . . Zone Layout 2 | . . . . . . . . . . . . . . . . . . . . . . . . . . . 1 . 1 . Fabricator Hacks 10 | . . . . . . . . . . . 1 . . . . 5 . . . . . . . . . 1 . 3 . . Network Status 2 | . . . . . . . . . . . 1 . . . . . . . . . . . . . . 1 . . . . Load Schematic 5 | . . . . . . . . . . . . . . . . 3 . . . . . . . . . . . 2 . . Build 3 | . . . . . . . . . . . . . . . . 2 . . . . . . . . . . . 1 . . Repair Station Hacks 14 | . 2 . . . 2 4 . . . . . . . . . 2 . . . . 2 . . . . 2 . . . . Scan Component 7 | . 1 . . . 1 2 . . . . . . . . . 1 . . . . 1 . . . . 1 . . . . Repair 7 | . 1 . . . 1 2 . . . . . . . . . 1 . . . . 1 . . . . 1 . . . . Recycling Unit Hacks 2 | . . . . . . 1 . . . . . . . . . 1 . . . . . . . . . . . . . . Retrieve Components 2 | . . . . . . 1 . . . . . . . . . 1 . . . . . . . . . . . . . . Scanalyzer . | . . . . . . . . . . . . . . . . . . . . . . . . . . . . . . . Garrison Access Hacks 3 | . . . . . . . . . . . 1 . . . . . . . . . . . . . . 1 . . . 1 Seal Access 3 | . . . . . . . . . . . 1 . . . . . . . . . . . . . . 1 . . . 1 Unauthorized Hacks 48 | . 2 . 8 . 1 4 . . . . 10 . . . . 5 . . . . 2 1 . . 4 3 1 1 4 2 Terminals 39 | . 2 . 8 . 1 2 . . . . 8 . . . . 3 . . . . 2 1 . . 4 2 . . 4 2 Track 1 | . . . . . . . . . . . . . . . . . . . . . . 1 . . . . . . . . Assimilate 1 | . . . . . . . . . . . . . . . . 1 . . . . . . . . . . . . . . Botnet 20 | . 2 . 2 . 1 1 . . . . 3 . . . . 2 . . . . 2 . . . . 2 . . 3 2 Disrupt 1 | . . . . . . . . . . . . . . . . . . . . . . . . . . . . . 1 . Skim 12 | . . . 6 . . 1 . . . . 5 . . . . . . . . . . . . . . . . . . . Sabotage 4 | . . . . . . . . . . . . . . . . . . . . . . . . . 4 . . . . . Fabricators 8 | . . . . . . 1 . . . . 2 . . . . 2 . . . . . . . . . 1 1 1 . . Report 1 | . . . . . . . . . . . 1 . . . . . . . . . . . . . . . . . . . Prioritize 2 | . . . . . . . . . . . . . . . . 1 . . . . . . . . . . . 1 . . Liberate 2 | . . . . . . . . . . . 1 . . . . . . . . . . . . . . 1 . . . . Fabnet 1 | . . . . . . 1 . . . . . . . . . . . . . . . . . . . . . . . . Recompile 2 | . . . . . . . . . . . . . . . . 1 . . . . . . . . . . 1 . . . Repair Stations . | . . . . . . . . . . . . . . . . . . . . . . . . . . . . . . . Recycling Units 1 | . . . . . . 1 . . . . . . . . . . . . . . . . . . . . . . . . Tunnel 1 | . . . . . . 1 . . . . . . . . . . . . . . . . . . . . . . . . Scanalyzers . | . . . . . . . . . . . . . . . . . . . . . . . . . . . . . . . Garrison Access . | . . . . . . . . . . . . . . . . . . . . . . . . . . . . . . . Data Cores Recovered 2 | . 1 . . . . . . . . . 1 . . . . . . . . . . . . . . . . . . . Used 1 | . 1 . . . . . . . . . . . . . . . . . . . . . . . . . . . . . Hacking Detections 48 | . 6 . 5 . 2 6 . . . . 9 . . . . 4 . . . . 1 . 1 . . 4 2 1 5 2 Full Trace Events 5 | . 2 . 1 . . . . . . . . . . . . 1 . . . . . . . . . . . 1 . . Feedback Events . | . . . . . . . . . . . . . . . . . . . . . . . . . . . . . . . Feedback Blocked . | . . . . . . . . . . . . . . . . . . . . . . . . . . . . . . . Robot Schematics Acquired 7 | . . . . . . . . . 7 . . . . . . . . . . . . . . . . . . . . . Robots Built . | . . . . . . . . . . . . . . . . . . . . . . . . . . . . . . . Authchips . | . . . . . . . . . . . . . . . . . . . . . . . . . . . . . . . Time . | . . . . . . . . . . . . . . . . . . . . . . . . . . . . . . . Total Robot Build Rating . | . . . . . . . . . . . . . . . . . . . . . . . . . . . . . . . Part Schematics Acquired 15 | . . . . . . . . . 11 . . . . . . 1 . . . . . . . . . . . . 3 . Parts Built 3 | . . . . . . . . . . . . . . . . 2 . . . . . . . . . . . 1 . . Authchips 2 | . . . . . . . . . . . . . . . . 1 . . . . . . . . . . . 1 . . Time 144 | . . . . . . . . . . . . . . . . 100 . . . . . . . . . . . 44 . . Total Part Build Rating 12 | . . . . . . . . . . . . . . . . 8 . . . . . . . . . . . 4 . . Parts Repaired 7 | . 1 . . . 1 2 . . . . . . . . . 1 . . . . 1 . . . . 1 . . . . Time 322 | . 26 . . . 51 102 . . . . . . . . . 22 . . . . 51 . . . . 70 . . . . Parts Recycled . | . . . . . . . . . . . . . . . . . . . . . . . . . . . . . . . Recycled Matter . | . . . . . . . . . . . . . . . . . . . . . . . . . . . . . . . Retrieved Matter . | . . . . . . . . . . . . . . . . . . . . . . . . . . . . . . . Retrieved Components 3 | . . . . . . . . . . . . . . . . 3 . . . . . . . . . . . . . . Parts Scanalyzed . | . . . . . . . . . . . . . . . . . . . . . . . . . . . . . . . Part Schematics Acquired . | . . . . . . . . . . . . . . . . . . . . . . . . . . . . . . . Parts Damaged . | . . . . . . . . . . . . . . . . . . . . . . . . . . . . . . . Bothacking | -11 -10 -10 -9 -9 -8 -7 -7 -7 -7 -6 -6 -6 -6 -6 -5 -5 -5 -5 -5 -4 -4 -4 -4 -4 -4 -3 -3 -2 -2 -1 ------------ Run | Yrd Mat Min Mat Min Mat Fac Low Low Dat Pro Fac Low Low Zio Pro Fac Upp Upp War Pro Fac Ext Cet Arc Hub Res Tes Res Qua Acc Used RIF Installer . | . . . . . . . . . . . . . . . . . . . . . . . . . . . . . . . Robots Hacked 3 | . . . . . . . . . . 1 . . . . . . . . 2 . . . . . . . . . . . Non-combat . | . . . . . . . . . . . . . . . . . . . . . . . . . . . . . . . Combat 3 | . . . . . . . . . . 1 . . . . . . . . 2 . . . . . . . . . . . Robot Hacks Applied . | . . . . . . . . . . . . . . . . . . . . . . . . . . . . . . . Relay Couplers Released . | . . . . . . . . . . . . . . . . . . . . . . . . . . . . . . . Fabnet Peak Effective % 3 | . . . . . . . . . . 3 3 3 3 3 1 1 1 1 1 . . . . . . . . . . . Autooverrided 3 | . . . . . . . . . . 1 . . . . . . . . 2 . . . . . . . . . . . Robots Rewired 5 | . . . . . . . . . . . . . . . . . . . 5 . . . . . . . . . . . Allies Hacked . | . . . . . . . . . . . . . . . . . . . . . . . . . . . . . . . Hacks Repelled . | . . . . . . . . . . . . . . . . . . . . . . . . . . . . . . . Allies | -11 -10 -10 -9 -9 -8 -7 -7 -7 -7 -6 -6 -6 -6 -6 -5 -5 -5 -5 -5 -4 -4 -4 -4 -4 -4 -3 -3 -2 -2 -1 -------- Run | Yrd Mat Min Mat Min Mat Fac Low Low Dat Pro Fac Low Low Zio Pro Fac Upp Upp War Pro Fac Ext Cet Arc Hub Res Tes Res Qua Acc Total Allies 26 | . . 3 . 1 . . . . . 1 . . . . . 1 . . 7 . . 6 1 . . . . . . 6 Largest Group 5 | . . 3 3 1 . . . . . 1 . . . . . 1 . . 5 . . 5 5 . . . . . . 2 Highest-Rated Group 329 | . . 40 40 31 . . . . . 32 . . . . . 26 . . 223 . . 329 329 . . . . . . 24 Highest-Rated Ally 153 | . . 16 16 31 . . . . . 32 . . . . . 26 . . 49 . . 153 153 . . . . . . 13 Total Orders . | . . . . . . . . . . . . . . . . . . . . . . . . . . . . . . . Ally Attacks 98 | . . . 44 3 . . . . . 2 . . . . . . . . . . . 8 33 . . . . . . 8 Total Damage 1898 | . . . 458 44 . . . . . 98 . . . . . . . . . . . 303 876 . . . . . . 119 Kills 8 | . . . 3 1 . . . . . . . . . . . . . . . . . 2 1 . . . . . . 1 Allies Corrupted . | . . . . . . . . . . . . . . . . . . . . . . . . . . . . . . . Allies Melted . | . . . . . . . . . . . . . . . . . . . . . . . . . . . . . . . Intel | -11 -10 -10 -9 -9 -8 -7 -7 -7 -7 -6 -6 -6 -6 -6 -5 -5 -5 -5 -5 -4 -4 -4 -4 -4 -4 -3 -3 -2 -2 -1 ------- Run | Yrd Mat Min Mat Min Mat Fac Low Low Dat Pro Fac Low Low Zio Pro Fac Upp Upp War Pro Fac Ext Cet Arc Hub Res Tes Res Qua Acc Active Infowar (turns) 8349 | . 843 293 1287 . 549 387 139 94 23 55 409 87 89 201 215 427 203 134 243 106 227 677 101 21 57 530 174 250 180 348 Optics 2853 | . . . . . . . . . . . . . . . . . . . 182 106 227 677 101 21 57 530 174 250 180 348 Sensors 2944 | . . . . . . . . . . . . 54 89 201 215 337 184 . . . 222 165 . . 29 530 144 250 180 344 Seismic 4112 | . 843 293 1287 . 549 387 139 94 23 55 409 33 . . . . . . . . . . . . . . . . . . Decoding 3678 | . . . . . . . . . . . . . . . . 427 203 134 243 106 227 677 101 21 57 530 174 250 180 348 Cloaking 1 | . . . . . . . . . . . . . . . . . . . . . . 1 . . . . . . . . Jamming 354 | . . . . . . . . . . . 1 . 1 . . . . . . . 98 . . . . 125 129 . . . ECM 15 | . . . . . . . . . . . . . . . . . . . . . . . . . . . 3 12 . . Robot Analysis Total . | . . . . . . . . . . . . . . . . . . . . . . . . . . . . . . . Derelict Logs Recovered 9 | . . 2 . 1 . . 1 . . . . . . 2 . . 1 1 . 1 . . . . . . . . . . Drone Launches . | . . . . . . . . . . . . . . . . . . . . . . . . . . . . . . . Drone Recoveries . | . . . . . . . . . . . . . . . . . . . . . . . . . . . . . . . Decoded 0b10 Intel 78 | . . . . . . . . . . . . . . . . 11 . . . . 7 12 2 . 1 12 5 8 8 12 Traps 7 | . . . . . . . . . . . . . . . . 4 . . . . . 1 . . . 1 . . 1 . Emergency Access 4 | . . . . . . . . . . . . . . . . . . . . . . . . . . 1 . 2 . 1 Items 46 | . . . . . . . . . . . . . . . . 6 . . . . 5 6 1 . . 10 2 3 4 9 Machines 15 | . . . . . . . . . . . . . . . . 1 . . . . 2 3 1 . . . 3 1 3 1 Patrols 2 | . . . . . . . . . . . . . . . . . . . . . . . . . . . . 1 . 1 Guards 4 | . . . . . . . . . . . . . . . . . . . . . . 2 . . 1 . . 1 . . Exploration | -11 -10 -10 -9 -9 -8 -7 -7 -7 -7 -6 -6 -6 -6 -6 -5 -5 -5 -5 -5 -4 -4 -4 -4 -4 -4 -3 -3 -2 -2 -1 ------------- Run | Yrd Mat Min Mat Min Mat Fac Low Low Dat Pro Fac Low Low Zio Pro Fac Upp Upp War Pro Fac Ext Cet Arc Hub Res Tes Res Qua Acc Turns Passed 10659 | . 1446 1174 1507 554 550 387 139 94 23 55 409 88 91 201 225 427 203 134 243 106 227 677 101 21 57 530 174 250 180 386 Spaces Moved 15179 | 1 718 639 757 404 279 742 409 264 84 203 1015 311 282 700 532 706 591 503 475 391 530 1012 213 29 159 998 424 746 336 726 Core 42 | . . . . . . . . . . . . . . . 2 . . . . . . . . . . . . . . 40 Treads 1449 | . 639 639 171 . . . . . . . . . . . . . . . . . . . . . . . . . . . Legs 80 | 1 79 . . . . . . . . . . . . . . . . . . . . . . . . . . . . . Wheels 1269 | . . . 586 404 279 . . . . . . . . . . . . . . . . . . . . . . . . . Hover 16 | . . . . . . . . . . . . . . . . . . . . . . . . . . . . . . 16 Flight 12323 | . . . . . . 742 409 264 84 203 1015 311 282 700 530 706 591 503 475 391 530 1012 213 29 159 998 424 746 336 670 Fastest Speed 6 | 120 120 160 130 130 130 27 27 27 27 27 27 27 27 27 27 19 19 22 21 12 21 24 14 24 24 6 14 19 13 17 Average Speed 47 | 120 155 160 139 130 130 27 27 27 27 27 27 27 27 27 28 25 22 22 21 20 23 24 21 24 24 23 23 20 22 26 Slowest Speed 240 | 120 240 160 240 130 130 28 27 27 27 27 27 27 27 27 150 29 23 22 92 21 26 24 24 24 24 24 30 23 23 60 Overloaded Moves 149 | . . . . . . . . . . . . . . . . 6 11 . . 23 . . 46 . . 20 2 . 9 32 Propulsion Burnouts . | . . . . . . . . . . . . . . . . . . . . . . . . . . . . . . . Robots Hopped 91 | . . . . . . 7 . 1 . . 10 . . . . 5 . . . . 2 12 3 1 3 20 3 8 3 13 Potential Cave-ins 9 | . . . . . . . . . . . . . . . . . 7 . . . . 2 . . . . . . . . Cave-ins Triggered . | . . . . . . . . . . . . . . . . . . . . . . . . . . . . . . . Exploration Rate (%) 51 | 2 83 94 61 82 27 23 58 45 71 46 29 46 60 82 68 22 60 55 75 71 18 84 78 73 22 31 40 22 48 23 Regions Visited 30 Branch Regions 20 Pre-discovered Areas 7 | . . . . 1 . 1 . . 1 . . . . 2 . . . . 1 1 . . . . . . . . . . Known Exits Taken 24 | . . . 1 1 1 1 . . . 1 1 1 1 1 1 1 1 1 1 1 1 1 1 1 1 1 1 1 1 . Unknown Exits Taken 6 | 1 1 1 . . . . 1 1 1 . . . . . . . . . . . . . . . . . . . . . Scrap Searched 25 | . . 1 . 1 . . 3 4 . 1 . 2 2 3 3 . . 2 . 3 . . . . . . . . . . Spaces Dug 131 | . 5 . 11 8 2 8 1 6 . . 16 . 3 . 1 8 1 1 . . 2 . . . 6 29 2 6 5 10 Terrain Destroyed 331 | . 19 42 11 19 2 17 1 6 . . 16 . 3 . 1 8 34 19 . 41 2 17 . . 6 29 2 7 9 20 Melee 113 | . . . 11 . 2 8 1 6 . . 16 . 3 . 1 8 1 1 . . 2 . . . 6 29 2 5 5 6 Projectile 20 | . . . . . . . . . . . . . . . . . . . . . . . . . . . . 2 4 14 AOE 198 | . 19 42 . 19 . 9 . . . . . . . . . . 33 18 . 41 . 17 . . . . . . . . Terrain Rammed . | . . . . . . . . . . . . . . . . . . . . . . . . . . . . . . . Walls Destroyed . | . . . . . . . . . . . . . . . . . . . . . . . . . . . . . . . Machines Disabled . | . . . . . . . . . . . . . . . . . . . . . . . . . . . . . . . Actions | -11 -10 -10 -9 -9 -8 -7 -7 -7 -7 -6 -6 -6 -6 -6 -5 -5 -5 -5 -5 -4 -4 -4 -4 -4 -4 -3 -3 -2 -2 -1 --------- Run | Yrd Mat Min Mat Min Mat Fac Low Low Dat Pro Fac Low Low Zio Pro Fac Upp Upp War Pro Fac Ext Cet Arc Hub Res Tes Res Qua Acc Total 17871 | . 946 723 1047 417 431 897 433 272 83 202 1101 314 289 711 586 915 653 519 614 411 625 1404 262 36 164 1206 484 826 421 879 Wait 1801 | . 106 18 120 . 107 103 22 3 . . 63 . . 2 42 127 57 12 104 12 64 348 45 6 2 168 28 56 59 127 Move 14971 | . 717 638 756 403 278 727 408 261 83 202 994 310 281 699 531 695 590 502 474 390 525 988 206 26 152 958 418 729 329 701 Hop 87 | . . . . . . 7 . 1 . . 10 . . . . 5 . . . . 2 11 3 1 3 19 2 8 3 12 Pick Up 96 | . 15 4 18 1 8 8 . . . . 2 . 1 3 1 4 . 1 . 2 8 4 1 . . 5 4 4 1 1 Fast Attach 90 | . 12 . 8 . 1 3 . . . . 4 1 2 1 1 5 . . 8 . 6 3 3 . . 2 10 7 9 4 Attach 45 | . 1 2 6 . 5 9 . . . . 1 1 1 . 1 3 2 . . 1 2 1 . . . 3 3 1 . 2 Detach 22 | . 2 . 2 . . 2 . . . . . 1 . . . 2 . . 4 . 2 . . . . 1 2 1 1 2 Swap 95 | . 18 17 26 3 6 5 2 1 . . 1 . . 2 . 1 1 . . . 1 . 2 . 1 5 2 1 . . Drop 153 | . 17 6 28 2 9 18 . . . . 6 1 1 4 1 3 . . 4 2 11 5 2 . . 5 8 10 8 2 Fire 227 | . 56 38 72 8 15 2 . . . . . . . . . . 2 2 . 4 . 4 . . . . 2 4 4 14 Melee 178 | . . . 11 . 2 13 1 6 . . 20 . 3 . 9 15 1 2 . . 4 15 . 3 6 40 5 5 7 10 Ram 4 | . . . . . . . . . . . . . . . . . . . . . . . . . . . . . . 4 Kick . | . . . . . . . . . . . . . . . . . . . . . . . . . . . . . . . Crush 2 | . 2 . . . . . . . . . . . . . . . . . . . . . . . . . . . . . Escape Stasis 71 | . . . . . . . . . . . . . . . . 55 . . . . . 16 . . . . . . . . Rewire 29 | . . . . . . . . . . . . . . . . . . . 20 . . 9 . . . . . . . . Trap . | . . . . . . . . . . . . . . . . . . . . . . . . . . . . . . . Miscellaneous . | . . . . . . . . . . . . . . . . . . . . . . . . . . . . . . . Route ------- -11/Scrapyard -10/Materials (discovered 2 exits: *Mat / [*Min]) -10/Mines (discovered 3 exits: *Mat x2 / [*Sub]) -9/Materials (discovered 4 exits: *Mat x3 / *Min) -9/Mines (discovered 2 exits: *Mat x2) -8/Materials (discovered 2 exits: *Fac x2) -7/Factory (discovered 4 exits: *Sto x2 / *Low x2) -7/Lower Caves -7/Lower Caves (discovered 2 exits: *Fac / *Dat) -7/Data Miner -6/Proximity Caves -6/Factory (discovered 2 exits: *Low x2) -6/Lower Caves -6/Lower Caves (discovered 2 exits: *Fac / *Zio) -6/Zion -5/Proximity Caves -5/Factory (discovered 3 exits: *Fac / *Upp x2) -5/Upper Caves -5/Upper Caves -5/Warlord -4/Proximity Caves -4/Factory (discovered 5 exits: *Upp x2 / *Ext x2 / Arm) -4/Extension (discovered 2 exits: *Res / *Cet) -4/Cetus -4/Archives -4/Hub_04(d) (discovered 4 exits: *Res x4) -3/Research (discovered 2 exits: *Tes x2) -3/Testing -2/Research (discovered 5 exits: *Acc x3 / *Qua x2) -2/Quarantine -1/Access History --------- Turn | Location | Event 1 | -11/Scrapyard | Discovered new exit (range 0) 1 | -11/Scrapyard | Entered Materials 311 | -10/Materials | Build established: Mutant 505 | -10/Materials | Discovered new exit (range 11) 691 | -10/Materials | Repaired Lgt. Armor Plating 1083 | -10/Materials | Discovered new exit (range 16) 1447 | -10/Materials | Entered Mines 1501 | -10/Mines | Discovered new exit (range 6) 1901 | -10/Mines | Learned Materials stockpile data 1942 | -10/Mines | Found a hidden stash of uninstalled traps 2220 | -10/Mines | Discovered new exit (range 11) 2360 | -10/Mines | Core integrity fell below 50% 2544 | -10/Mines | Discovered new exit (range 3) 2583 | -10/Mines | Assisted by bots powering up and referring to "LRC-V3" 2621 | -10/Mines | Entered Materials 2621 | -9/Materials | Accompanied by 3 allies 2621 | -9/Materials | Evolved 2 slots: Propulsion x1, Weapon x1 2622 | -9/Materials | Identified exit to Mines 2904 | -9/Materials | Lost 3 allies 2924 | -9/Materials | Build established: Gunner 3850 | -9/Materials | Discovered new exit (range 15) 3893 | -9/Materials | Identified exit to Materials 4066 | -9/Materials | Learned 8 Materials zone layouts 4128 | -9/Materials | Entered Mines 4195 | -9/Mines | Discovered exit to Materials (range 6) 4273 | -9/Mines | Received a Mining Laser from a helpful Derelict 4391 | -9/Mines | Build established: Tank 4670 | -9/Mines | Learned location of Zion (-6) 4671 | -9/Mines | Discovered exit to Materials (range 9) 4682 | -9/Mines | Entered Materials 4682 | -8/Materials | Evolved 2 slots: Propulsion x1, Utility x1 4683 | -8/Materials | Identified exit to Factory 4749 | -8/Materials | Repaired Imp. Assault Rifle 5232 | -8/Materials | Entered Factory 5232 | -7/Factory | Evolved 2 slots: Propulsion x1, Utility x1 5351 | -7/Factory | Discovered new exit (range 9) 5351 | -7/Factory | Identified exit to Storage 5351 | -7/Factory | Identified exit to Lower Caves 5436 | -7/Factory | Repaired Imp. Flight Unit 5488 | -7/Factory | Repaired Imp. Flight Unit 5542 | -7/Factory | Build established: Hacker-Sprinter 5619 | -7/Factory | Entered Lower Caves 5668 | -7/Lower Caves | Learned location of 1 exit from Proximity Caves 5669 | -7/Lower Caves | Spotted B-75 Beast 5712 | -7/Lower Caves | Discovered new exit (range 16) 5758 | -7/Lower Caves | Entered another Lower Caves area 5759 | -7/Lower Caves | Discovered new exit (range 8) 5790 | -7/Lower Caves | Spotted B-75 Beast 5806 | -7/Lower Caves | Encountered a Warlord checkpoint 5845 | -7/Lower Caves | Discovered new exit (range 5) 5852 | -7/Lower Caves | Entered Data Miner 5852 | -7/Data Miner | Discovered new exit (range 6) 5858 | -7/Data Miner | Met Data Miner 5864 | -7/Data Miner | Learned location of Section 7 (-2) 5864 | -7/Data Miner | Acquired the access code to Warlord's prototype stash 5869 | -7/Data Miner | Received God Mode back door access code from Data Miner 5875 | -7/Data Miner | Entered Proximity Caves 5876 | -6/Proximity Caves | Identified exit to Factory 5930 | -6/Proximity Caves | Entered Factory 5930 | -6/Factory | Evolved 2 slots: Power x1, Utility x1 5977 | -6/Factory | Identified exit to Lower Caves 6293 | -6/Factory | Spotted B-75 Beast 6339 | -6/Factory | Entered Lower Caves 6386 | -6/Lower Caves | Encountered a Warlord checkpoint 6393 | -6/Lower Caves | Discovered new exit (range 10) 6426 | -6/Lower Caves | Identified exit to Lower Caves 6427 | -6/Lower Caves | Entered another Lower Caves area 6429 | -6/Lower Caves | Discovered new exit (range 5) 6438 | -6/Lower Caves | Spotted B-75 Beast 6466 | -6/Lower Caves | Found Alien Artifact 6466 | -6/Lower Caves | Identified Core Expander 6466 | -6/Lower Caves | Installed Core Expander, added new Utility slot 6485 | -6/Lower Caves | Discovered new exit (range 14) 6518 | -6/Lower Caves | Identified exit to Zion 6518 | -6/Lower Caves | Entered Zion 6532 | -6/Zion | Found CR-A16's Pointy Stick 6537 | -6/Zion | Discovered new exit (range 14) 6547 | -6/Zion | Found Prototype Device 6550 | -6/Zion | Identified Bomb Factory No. 2 6578 | -6/Zion | Learned Factory fabricator intel 6597 | -6/Zion | Learned location of Extension (-4) 6674 | -6/Zion | Given A8's code to call for help 6718 | -6/Zion | Identified exit to Proximity Caves 6719 | -6/Zion | Entered Proximity Caves 6801 | -5/Proximity Caves | Spotted B-75 Beast 6847 | -5/Proximity Caves | Revealed the true nature of CR-A16's Pointy Stick 6869 | -5/Proximity Caves | Destroyed B-75 Beast 6875 | -5/Proximity Caves | Lost 3 parts (1p1n1w) 6917 | -5/Proximity Caves | Discovered new exit (range 15) 6944 | -5/Proximity Caves | Identified exit to Factory 6944 | -5/Proximity Caves | Entered Factory 6944 | -5/Factory | Evolved 2 slots: Propulsion x1, Utility x1 6945 | -5/Factory | Loaded intel: 6 fabricator locations 6956 | -5/Factory | Identified exit to Upper Caves 7004 | -5/Factory | Found Prototype Launcher 7004 | -5/Factory | Identified Mni. Smartbomb Launcher 7006 | -5/Factory | Found Prototype Launcher 7006 | -5/Factory | Identified Tesla Bomb Launcher 7121 | -5/Factory | Fabricated Cld. VTOL Module (x1) 7156 | -5/Factory | Fabricated Cld. VTOL Module (x1) 7328 | -5/Factory | Discovered new exit (range 10) 7357 | -5/Factory | Repaired Mic. Nuclear Core 7371 | -5/Factory | Entered Upper Caves 7505 | -5/Upper Caves | Spotted B-75 Beast 7570 | -5/Upper Caves | Discovered new exit (range 7) 7572 | -5/Upper Caves | Identified exit to Upper Caves 7574 | -5/Upper Caves | Entered another Upper Caves area 7575 | -5/Upper Caves | Identified exit to Warlord 7579 | -5/Upper Caves | Learned location of 1 exit from Proximity Caves 7598 | -5/Upper Caves | Attracted the attention of an 0b10 checkpoint 7602 | -5/Upper Caves | Acquired the password to a Derelict Tinkerer's latest research 7647 | -5/Upper Caves | Spotted B-75 Beast 7708 | -5/Upper Caves | Entered Warlord 7724 | -5/Warlord | Learned location of Testing (-3) 7724 | -5/Warlord | Learned Factory fabricator intel 7724 | -5/Warlord | Learned Research garrison access intel 7724 | -5/Warlord | Learned Armory scanalyzer intel 7724 | -5/Warlord | Learned Factory recycling unit intel 7736 | -5/Warlord | Received a Watcher feed algorithm from an ecstatic Tinkerer 7736 | -5/Warlord | Ran a Watcher feed algorithm 7756 | -5/Warlord | Opened Warlord's prototype stash 7764 | -5/Warlord | Found Prototype Device 7764 | -5/Warlord | Identified Exp. Focal Shield 7769 | -5/Warlord | Found Prototype Processor 7769 | -5/Warlord | Identified Spectral Analyzer 7772 | -5/Warlord | Found Prototype Processor 7772 | -5/Warlord | Identified Exp. Targeting Computer 7775 | -5/Warlord | Found Prototype Hackware 7775 | -5/Warlord | Identified Ghost Barrier 7825 | -5/Warlord | Met Warlord 7844 | -5/Warlord | Discovered new exit (range 12) 7846 | -5/Warlord | Identified exit to Proximity Caves 7850 | -5/Warlord | Warlord's base attacked by MAIN.C 7951 | -5/Warlord | Entered Proximity Caves 7952 | -4/Proximity Caves | Identified exit to Factory 7970 | -4/Proximity Caves | Found DCF Scrap (11 items) 8057 | -4/Proximity Caves | Entered Factory 8057 | -4/Factory | Evolved 2 slots: Utility x2 8058 | -4/Factory | Loaded intel: 6 fabricator locations 8059 | -4/Factory | Loaded intel: 8 recycling unit locations 8130 | -4/Factory | Repaired Imp. Flight Unit 8227 | -4/Factory | Discovered new exit (range 5) 8228 | -4/Factory | Identified exit to Upper Caves 8245 | -4/Factory | Identified exit to Extension 8245 | -4/Factory | Identified exit to Armory 8284 | -4/Factory | Entered Extension 8303 | -4/Extension | Spotted B-86 Titan 8303 | -4/Extension | Spotted B-86 Titan 8364 | -4/Extension | Build established: Hacker-Ninja 8395 | -4/Extension | Destroyed 10 combat bots 8405 | -4/Extension | Rescued a captive Derelict 8615 | -4/Extension | Destroyed B-86 Titan 8619 | -4/Extension | Destroyed B-86 Titan 8700 | -4/Extension | Discovered new exit (range 24) 8700 | -4/Extension | Discovered new exit (range 22) 8707 | -4/Extension | Identified exit to Cetus 8709 | -4/Extension | Identified exit to Research 8728 | -4/Extension | Rescued a captive Derelict 8739 | -4/Extension | Rescued a captive Derelict 8747 | -4/Extension | Rescued a captive Derelict 8748 | -4/Extension | Rescued a captive Derelict 8748 | -4/Extension | Rescued a captive Derelict 8756 | -4/Extension | Build established: Hacker-Sprinter 8794 | -4/Extension | Rescued a captive Derelict 8795 | -4/Extension | Rescued a captive Derelict 8938 | -4/Extension | Rescued A7 8961 | -4/Extension | Entered Cetus 8961 | -4/Cetus | Accompanied by 5 allies (A7) 8964 | -4/Cetus | Spotted Cetus Guard 8964 | -4/Cetus | Spotted Cetus Guard 8964 | -4/Cetus | Spotted Cetus Guard 8964 | -4/Cetus | Spotted Cetus Guard 8966 | -4/Cetus | Acquired a Cetus Manufacturing Module code from A7 8983 | -4/Cetus | Allies destroyed Cetus Guard 9001 | -4/Cetus | Started Cetus Manufacturing Module 9026 | -4/Cetus | Manufactured an Enhanced Grunt 9027 | -4/Cetus | Lost 4 allies 9034 | -4/Cetus | Cetus Manufacturing Module disabled 9041 | -4/Cetus | Extracted ID and sensor layout for unrecognized location from A7's data core 9056 | -4/Cetus | Discovered new exit (range 24) 9062 | -4/Cetus | Identified exit to Archives 9062 | -4/Cetus | Entered Archives 9079 | -4/Archives | Discovered new exit (range 15) 9083 | -4/Archives | Identified exit to Hub_04(d) 9083 | -4/Archives | Entered Hub_04(d) 9088 | -4/Hub_04(d) | Network Hub disabled 9105 | -4/Hub_04(d) | Spotted Lightning 9113 | -4/Hub_04(d) | Spotted Lightning 9113 | -4/Hub_04(d) | Network Hub disabled 9128 | -4/Hub_04(d) | Spotted Lightning 9140 | -4/Hub_04(d) | Entered Research 9140 | -3/Research | Evolved 2 slots: Propulsion x1, Utility x1 9141 | -3/Research | Loaded intel: 4 garrison access locations 9239 | -3/Research | Repaired Cld. VTOL Module 9263 | -3/Research | Identified exit to Testing 9412 | -3/Research | Build established: Hacker-Scout 9494 | -3/Research | Spotted B-86 Titan 9562 | -3/Research | Spotted B-86 Titan 9670 | -3/Research | Entered Testing 9671 | -3/Testing | Spotted PH-YHGLSZN9ER 9685 | -3/Testing | Identified exit to Research 9701 | -3/Testing | Spotted PH-L4GYEMR5VY 9801 | -3/Testing | Lost 3 parts (2u1w) 9807 | -3/Testing | Found Prototype Energy Cannon 9807 | -3/Testing | Identified Potential Cannon 9842 | -3/Testing | Found Prototype Energy Cannon 9844 | -3/Testing | Entered Research 9844 | -2/Research | Warlord forces began assault on 0b10 9844 | -2/Research | Evolved 2 slots: Power x1, Propulsion x1 9845 | -2/Research | Identified exit to Access 9846 | -2/Research | Identified Hpw. Disruptor Cannon 9880 | -2/Research | Fabricated Cld. VTOL Module (x1) 9953 | -2/Research | Identified exit to Quarantine 9954 | -2/Research | Research machine network offline 9960 | -2/Research | Found Exp. Hacking Suite 10094 | -2/Research | Entered Quarantine 10116 | -2/Quarantine | Found Alien Reactor 10116 | -2/Quarantine | Identified Matter Drive 10195 | -2/Quarantine | Garrison activated, responded to threat 10213 | -2/Quarantine | Met incapacitated Sigix Warrior 10213 | -2/Quarantine | Lockdown squad dispatched 10214 | -2/Quarantine | Acquired the access code to the Sigix quarantine chamber 10215 | -2/Quarantine | Unlocked Sigix quarantine chamber 10215 | -2/Quarantine | Found Sigix Containment Pod 10224 | -2/Quarantine | Spotted Lightning 10224 | -2/Quarantine | Spotted Lightning 10224 | -2/Quarantine | Spotted Lightning 10230 | -2/Quarantine | Found Alien Artifact 10230 | -2/Quarantine | Identified Phase Redirector 10251 | -2/Quarantine | Found Alien Artifact 10251 | -2/Quarantine | Identified Core Reset Matrix 10251 | -2/Quarantine | Used Core Reset Matrix 10255 | -2/Quarantine | Sensed 14 artifacts in vicinity 10271 | -2/Quarantine | Discovered exit to Access (range 16) 10274 | -2/Quarantine | Entered Access 10274 | -1/Access | Evolved 2 slots: Propulsion x2 10622 | -1/Access | Released all parts (8) 10645 | -1/Access | Core integrity fell below 50% 10649 | -1/Access | Emitted hypermatrix ping 10654 | -1/Access | Assembled emerged from beneath the floor 10654 | -1/Access | Core integrity fell below 20% 10660 | -1/Access | Destroyed by P-80 Master with Gamma Rifle Last Messages --------------- 10646_ S-43 Plague destroyed. 10646_ Acquired 6 matter. 10648_ Acquired Unknown Flight Unit. 10648_ Identified Xenon Bombardment Thruster. 10648_ S-43 Plague destroyed. 10648_ Xenon Bombardment Thruster destroyed. 10649_ Emitted hypermatrix ping. 10649_ Slammed into S-43 Plague. 10649_ Destabilizing: Core damaged (-16). 10650_ Detected hypermatrix ping. 10653_ P-80 Master resets S-43 Plague, system corruption cleaned. 10654_ S-43 Plague destroyed. 10654_ P-80 Master destroyed. 10654_ S-43 Plague destroyed. 10656_ Acquired Unknown Hover Unit. 10656_ Identified Imp. Antigrav System. 10657_ as-59415 destroyed. 10657_ as-72101 destroyed. 10658_ Imp. Antigrav System destroyed. 10659_ Slammed into P-80 Master. Map ----- +----------------------------------------------------+ | ?????????????????????????????????????????????????? | | ?????????????????????????????????????????????????? | | ?????????????????????????????????????????????????? | | ?????????????????????????????????????????????????? | | ?????????????????????????????????????????????????? | | ?????????????????????????????????????????????????? | | ?????????????????????????????????????????????????? | | ?????????????????????????????????????????????????? | | ?????????????????????????????????????????????????? | | ?????????????????????????????????????????????????? | | ?????????????????????????????????????????????????? | | ????????????######???????????????????????????????? | | ????????????# #???????????????????????????????? | | ????????????# = #???????????????????????????????? | | ????????????# #???????????????????????????????? | | ????????????# #???????????????????????????????? | | ????????????# #########???????????????????????? | | ????????????# ## #???????????????????????? | | ????????????# ##% #???????????????????????? | | ????????????# #=*[% ##############??????????? | | ????????????? "%[== # #??????????? | | ??? ###########+##=%*[% # #??????????? | | ??# s s=%=% # #??????????? | | ??# = [;%=;!"## #??????????? | | ??# ss[p%!=## "" #??????????? | | ??# *[! ! @p "" u #??????????? | | ??# ! ## p """""" #### ####### | | ??# ## """""" / # | | ??# ## p "" ######## # | | ??? ##### ######### ## p "" #??????# # | | ????????#+##+????????# ## #??????# # | | ?????????????????????# ## #??????# # | | ?????????????????????# ########+############# # | | ?????????????????????# | | ?????????????????????# | | ?????????????????????# | | ?????????????????????+ | | ?????????????????????# | | ?????????????????????# ! | | ?????????????????????# / | | ?????????????????????#######+###+################# | | ?????????????????????????????????????????????????# | | ?????????????????????????????????????????????????# | | ?????????????????????????????????????????????????# | | ?????????????????????????????????????????????????# | | ?????????????????????????????????????????????????# | | ?????????????????????????????????????????????????# | | ???????????????????????????????????????????????### | | ???????????????????????????????????????????????# | | ???????????????????????????????????????????????# | +----------------------------------------------------+ Best States ------------- Heat Dissipation 78 Energy Generation 62 Energy Capacity 275 Matter Stores 300 Matter Capacity 300 Sight Range 24 Robot Scan Range 18 Terrain Scan Density 10 ECM Strength 1 Jamming Range 12 Power Amplification 30 Armor Coverage 225 Evasion (%) 77 Recoil Reduction 3 Offensive Hacking 42 Defensive Hacking 20 Authchip Count 1 Item Schematics ----------------- None Robot Schematics ------------------ None Fabricated ------------ Cld. VTOL Module | x1 | -5/Factory | Authchip Cld. VTOL Module | x1 | -5/Factory Cld. VTOL Module | x1 | -2/Research | Authchip Repaired ---------- Lgt. Armor Plating | 38% | -10/Materials Imp. Assault Rifle | 55% | -8/Materials Imp. Flight Unit | 62% | -7/Factory Imp. Flight Unit | 67% | -7/Factory Mic. Nuclear Core | 12% | -5/Factory Imp. Flight Unit | 17% | -4/Factory Cld. VTOL Module | 31% | -3/Research Alien Tech Used ----------------- Core Expander Matter Drive Phase Redirector Core Reset Matrix Achievements -------------- None Challenges ------------ None Game ------ Seed LongswordNovaMonowheel Manual? 0 Play Time 03:37:40 Cumulative 221.8 hours Start 2025.10.04 @ 13:07:23 End 2025.10.05 @ 20:20:36 Sessions 3 Manual Loads 0 Difficulty Rogue Special Mode None Game No. 143 Rogue 143 Adventurer 0 Explorer 0 Win Type - Total 18 Types 9/0/3/6/0/0/0/0/0/0 Lore% 71 Gallery% 64 Achievement% 62 Wizard Run 0 Options --------- Layout 0 ASCII 0 Keyboard 1 Movement Arrows Keybinds 0 Fullscreen 1 Font 36/Proggy Map View 76x50 Zoom Use 0% Tactical HUD 1 Map Filters NONE Filters NONE Steam 1 RUN: 90fc4bb3-2c28-45fb-898b-aa33fbb41a89